Cogmind - Beta 15 @@@ ROGUE MODE // 2025.09.12 @ 15:41:37 Player: beans Result: Destroyed by S-27 Virus with Autogun Performance ------------- Evolutions (4) 2000 Regions Visited (9) 1800 Robots Destroyed (160) 800 Value Destroyed (4210) 4210 Prototype IDs (9) 180 Alien Tech Used (0) 0 Bonus (404) 404 TOTAL SCORE: 9394 Bonus ------- High Alert Combat Kills 397 Follower Combat Kills 46 Friendly Fire -39 Cogmind --------- Core Integrity 0/850 Matter 199/300 Energy 64/100 System Corruption 0% Temperature Cool (0) Movement Core (150) Ox2 Location -6/Factory Parts ------- > --- POWER (1) -------- (None) > --- PROPULSION (4) --- (None) > --- UTILITY (8) ------ Improved Signal Interpreter > --- WEAPON (2) ------- Plasma Cannon > --- INVENTORY (5) ---- Angular Momentum Engine Advanced Heat Sink High-capacity Matter Pod (119) Heavy Plasma Cannon Peak State ------------ > --- POWER ------------ Angular Momentum Engine > --- PROPULSION ------- Aerolev Unit Aerolev Unit Improved Gravmag System > --- UTILITY ---------- Improved Heat Sink Improved Sensor Array Improved Signal Interpreter Kinecellerator Weapon Cycler Experimental Weapon Shielding Thermal Shield High-powered Tractor Beam > --- WEAPON ----------- Phase Cannon Phase Cannon > --- INVENTORY -------- High-capacity Matter Pod Heavy Plasma Cannon Missile Launcher [Rating: 59] Favorites ----------- Power Cooled Ion Engine Engine Cooled Ion Engine Power Core Nuclear Core Propulsion Light Treads Treads Light Treads Leg Improved Carbon-fiber Leg Wheel Armored Wheel Hover Unit Aerolev Unit Flight Unit Flight Unit Utility Weapon Cycler Device Weapon Cycler Storage High-capacity Matter Pod Processor Improved Signal Interpreter Hackware Hacking Suite Protection Hardened Medium Armor Plating Weapon Missile Launcher Energy Gun Beam Rifle Energy Cannon Particle Cannon Ballistic Gun Assault Rifle Ballistic Cannon Gauss Cannon Launcher Missile Launcher Special Weapon Mining Laser Build | -11 -10 -10 -9 -9 -9 -8 -8 -7 -6 ------- Run | Yrd Mat Min Mat Min Exi Min Mat Fac Fac Slots Evolved 8 | . . . 2 . . . 2 2 2 Power . | . . . . . . . . . . Propulsion 2 | . . . 2 . . . . . . Utility 6 | . . . . . . . 2 2 2 Weapon . | . . . . . . . . . . Parts Attached 83 | 4 . 6 13 6 . 1 15 15 23 Power 9 | . . 1 1 . . . 1 3 3 Engine 5 | . . 1 1 . . . 1 1 1 Core 4 | . . . . . . . . 2 2 Reactor . | . . . . . . . . . . Propulsion 25 | 2 . 3 8 . . . 4 4 4 Treads 5 | 2 . . 3 . . . . . . Leg 4 | . . . . . . . 4 . . Wheel 4 | . . . . . . . . 4 . Hover 4 | . . . . . . . . . 4 Flight 8 | . . 3 5 . . . . . . Utility 20 | . . 1 1 3 . 1 4 2 8 Device 12 | . . 1 1 1 . 1 1 1 6 Storage 3 | . . . . 1 . . 2 . . Processor 2 | . . . . . . . 1 . 1 Hackware 1 | . . . . . . . . 1 . Protection 2 | . . . . 1 . . . . 1 Artifact . | . . . . . . . . . . Weapon 29 | 2 . 1 3 3 . . 6 6 8 Energy Gun 4 | . . . 1 . . . . 1 2 Energy Cannon 8 | . . . 1 2 . . . . 5 Ballistic Gun 5 | 2 . . . . . . 1 2 . Ballistic Cannon 3 | . . 1 . . . . 2 . . Launcher 8 | . . . 1 . . . 3 3 1 Special Weapon 1 | . . . . 1 . . . . . Impact Weapon . | . . . . . . . . . . Slashing Weapon . | . . . . . . . . . . Piercing Weapon . | . . . . . . . . . . Special Melee Weapon . | . . . . . . . . . . Unidentified Prototypes 9 | . . . 2 . . . . 4 3 Parts Lost 61 | . . 2 10 3 . . 9 19 18 Power 4 | . . . . . . . 1 1 2 Propulsion 22 | . . 2 6 1 . . 1 8 4 Utility 16 | . . . . 1 . . 3 4 8 Weapon 19 | . . . 4 1 . . 4 6 4 Highest Loss Streak 12 | . . 2 4 2 . . 8 6 12 To Critical Strikes . | . . . . . . . . . . Average Backups 4 | 1 1 4 3 4 5 5 4 4 4 Power . | . . . . . . . . . . Propulsion . | . . 1 1 1 1 1 . . . Utility 1 | . . . 1 2 3 3 1 . 1 Weapon 1 | . 1 2 . . 1 1 2 2 2 Tool/Special . | . . . . . . . . . . Unused Backups 5 | . . 3 . . 1 . . . 1 Power 1 | . . . . . . . . . 1 Propulsion . | . . . . . . . . . . Utility 1 | . . . . . 1 . . . . Weapon 2 | . . 2 . . . . . . . Tool/Special 1 | . . 1 . . . . . . . Average Slot Usage (%) 66 | . 57 72 71 61 66 66 76 76 49 Engine 6 | . . 13 11 11 11 11 5 1 1 Core 1 | . . . . . . . . 4 2 Treads 10 | . 28 24 10 21 11 11 1 . . Leg 4 | . . . . . . . 19 8 . Wheel 1 | . . . . . . . . 5 . Hover 2 | . . . . . . . . . 14 Flight 1 | . . 2 16 . . . 1 . . Device 9 | . . 3 16 4 11 11 6 14 18 Storage 7 | . . . . 9 11 11 15 11 . Processor 2 | . . . . . . . 7 6 1 Hackware 1 | . . . . . . . . 5 . Protection 1 | . . . . 7 . . 1 . . Energy Cannon 5 | . . . . 6 22 22 3 . 7 Ballistic Gun 3 | . 28 16 6 . . . 1 2 . Ballistic Cannon 2 | . . 11 1 . . . 9 2 . Launcher 2 | . . . 2 . . . 3 9 1 Peak Build Rating 59 | 4 4 9 16 15 13 14 37 42 59 Average Rating 19 | 2 4 7 11 12 12 12 26 30 31 On Entrance 11 | . 4 4 8 13 13 12 14 37 8 Naked Turns . | . . . . . . . . . . Heaviest Build 39 | 4 4 15 19 22 18 18 32 33 39 Greatest Support 72 | 40 40 40 60 60 20 20 72 72 34 Greatest Overweight (x) 9 | . . 4 1 . . . 4 9 4 Average Overweight (x) . | . . . . . . . . 1 . Largest Inventory Capacity 5 | 5 5 5 5 5 5 5 5 5 5 Average Capacity 5 | 5 5 5 5 5 5 5 5 5 5 Most Carried 5 | 4 2 5 5 5 5 5 5 5 5 Average Carried 4 | 1 1 4 3 4 4 5 4 4 4 Final Capacity 5 | 5 5 5 5 5 5 5 5 5 5 Final Carried 5 | 1 2 5 5 5 5 5 5 5 4 Class Distribution -------------------- 98% | Mutant Dominant Class ---------------- Mutant | -10/Materials Mutant | -10/Mines Mutant | -9/Materials Mutant | -9/Mines Mutant | -9/Exiles Mutant | -8/Mines Mutant | -8/Materials Mutant | -7/Factory Mutant | -6/Factory Resources | -11 -10 -10 -9 -9 -9 -8 -8 -7 -6 ----------- Run | Yrd Mat Min Mat Min Exi Min Mat Fac Fac Matter Collected 3298 | 240 138 197 437 55 . 10 983 723 515 Remotely . | . . . . . . . . . . Salvage Created 4219 | . 234 187 508 339 . 160 1027 1161 603 Parts 276 | . 23 16 44 22 . 6 64 69 32 Haulers Intercepted 5 | . . . 2 . . . 1 1 1 Recyclers Shooed 8 | . . . 2 1 . . 2 . 3 Parts Field Recycled . | . . . . . . . . . . Retrieved Matter . | . . . . . . . . . . Parts Self-Destructed . | . . . . . . . . . . Prevented . | . . . . . . . . . . Kills | -11 -10 -10 -9 -9 -9 -8 -8 -7 -6 ------- Run | Yrd Mat Min Mat Min Exi Min Mat Fac Fac Combat Hostiles Destroyed 101 | . 5 11 7 9 . 3 27 25 14 Melee 4 | . . . . 4 . . . . . Guns 17 | . 5 2 5 1 . . 1 3 . Cannons 45 | . . 9 1 4 . 2 15 6 8 AOE 34 | . . . 1 . . . 11 16 6 Classes Destroyed 16 | . 5 . 4 2 . 1 1 2 1 Worker 17 | . 1 1 2 1 . . 5 6 1 Builder 11 | . 2 . 3 1 . . 2 2 1 Tunneler 3 | . . . . 1 . . 1 1 . Hauler 5 | . . . 2 . . . 1 1 1 Recycler 11 | . . . 2 . . . 5 3 1 Mechanic 2 | . . . . . . . . 2 . Operator 3 | . . . 1 . . . 1 1 . Watcher 7 | . 2 . 2 . . . 2 1 . Swarmer 38 | . 3 9 2 . . . 11 3 10 Grunt 44 | . 2 2 2 7 . 2 8 20 1 Brawler 3 | . . . . . . 1 2 . . Duelist 4 | . . . . 2 . . 1 1 . Protector 2 | . . . . . . . 2 . . Sentry 8 | . . . 3 . . . 3 . 2 Hunter 1 | . . . . . . . . . 1 Programmer 1 | . . . . . . . . 1 . Best Kill Streak 18 | . 7 4 9 3 . 3 18 9 6 Combat Bots Only 8 | . 5 4 2 2 . 3 8 6 5 Max Kills in Single Turn 5 | . 1 2 2 1 . 1 5 4 4 Gunslinging . | . . . . . . . . . . Exploded 3 | . . . 1 . . . 2 3 3 Melee 1 | . . . . 1 . . . . . Uniques/NPCs Destroyed . | . . . . . . . . . . Combat | -11 -10 -10 -9 -9 -9 -8 -8 -7 -6 -------- Run | Yrd Mat Min Mat Min Exi Min Mat Fac Fac Hostile Shots Fired 822 | . 40 58 75 34 . 6 119 173 317 Missed 261 | . 9 16 21 9 . 4 32 49 121 Hits 561 | . 31 42 54 25 . 2 87 124 196 Melee 9 | . . . . 3 . . 6 . . Projectile 552 | . 31 42 54 22 . 2 81 124 196 Critical Strikes 15 | . 1 . 1 1 . . 5 4 3 Actively Blocked 1 | . . . . . . . . . 1 Damage Taken 7524 | . 300 364 774 382 . 28 1412 2026 2238 Core 2047 | . 81 61 155 94 . 15 411 368 862 Absorbed by Shields . | . . . . . . . . . . Redirected to Shielding 153 | . . . . . . . . . 153 Ignored by Resistances 9 | . . . . . . . . . 9 Core Remaining (%) 49 | 100 . 43 . . . 34 25 47 . Volleys Fired 370 | . 23 22 47 41 . 7 83 91 56 Largest 2 | . 2 2 2 2 . 2 2 2 2 Hottest 175 | . 40 50 124 124 . 124 124 80 175 Shots Fired 617 | . 46 44 80 43 . 14 150 155 85 Gun 207 | . 46 22 54 10 . . 20 54 1 Cannon 331 | . . 22 9 33 . 14 112 65 76 Launcher 79 | . . . 17 . . . 18 36 8 Special . | . . . . . . . . . . Kinetic 370 | . 46 44 43 . . . 118 119 . Thermal 157 | . . . 20 41 . 7 12 . 77 Explosive 79 | . . . 17 . . . 18 36 8 Electromagnetic 11 | . . . . 2 . 7 2 . . Robot Hit Streak 19 | . 3 5 8 11 . 5 19 8 12 Robot Miss Streak 7 | . 4 3 4 2 . 2 7 4 6 Penetration Max 1 | . . . . . . . 1 . . Secondary Targets 4 | . 2 . . . . . . 2 . Max Gunslinging Chain 1 | . 1 . . . . . . 1 . Shots Hit Robots 325 | . 19 22 43 18 . 9 80 88 46 Core Hits 226 | . 12 14 30 12 . 3 57 70 28 Critical Kills 2 | . 1 . . . . 1 . . . Critical Parts Destroyed 1 | . . . . . . . . 1 . Critical Strikes 20 | . 1 2 4 1 . 1 6 5 . Burn 5 | . . . 4 1 . . . . . Meltdown 1 | . . . . . . 1 . . . Destroy 2 | . 1 . . . . . . 1 . Blast 12 | . . 2 . . . . 6 4 . Melee Attacks . | . . . . . . . . . . Impact . | . . . . . . . . . . Slashing . | . . . . . . . . . . Piercing . | . . . . . . . . . . Sneak Attacks . | . . . . . . . . . . Combat Hostiles . | . . . . . . . . . . Follow-up Attacks . | . . . . . . . . . . Damage Inflicted 11832 | . 300 398 1242 401 . 194 3308 3990 1999 Guns 1900 | . 300 126 489 99 . . 271 615 . Cannons 4430 | . . 272 40 248 . 194 1491 864 1321 Explosions 5466 | . . . 713 26 . . 1546 2511 670 Melee . | . . . . . . . . . . Ramming 36 | . . . . 28 . . . . 8 Kinetic 4042 | . 300 398 323 . . . 1542 1479 . Thermal 2159 | . . . 206 350 . 62 220 . 1321 Explosive 5398 | . . . 713 . . . 1546 2469 670 Electromagnetic 197 | . . . . 23 . 132 . 42 . Impact . | . . . . . . . . . . Slashing . | . . . . . . . . . . Piercing . | . . . . . . . . . . Highest Corruption 3 | . . . . . . . 3 1 . Average Corruption 1 | . . . . . . . 3 1 . Corruption Purged . | . . . . . . . . . . Corruption Blocked . | . . . . . . . . . . Effects 21 | . . . . . . . 15 6 . Message Errors 2 | . . . . . . . 1 1 . Matter Fused 10 | . . . . . . . 8 2 . Heat Flow Errors 1 | . . . . . . . 1 . . Energy Discharges 1 | . . . . . . . 1 . . Data Loss (minor) 4 | . . . . . . . 2 2 . Alerts 1 | . . . . . . . . 1 . Weapon Failures 2 | . . . . . . . 2 . . Overload Shots . | . . . . . . . . . . Overflow Damage 304 | . . . 10 20 . . 172 73 29 Projectiles 151 | . . . . . . . 129 14 8 Explosions 153 | . . . 10 20 . . 43 59 21 Melee . | . . . . . . . . . . Knockbacks 17 | . . . . . . . 7 10 . Impact . | . . . . . . . . . . Kinetic 16 | . . . . . . . 6 10 . Secondary 1 | . . . . . . . 1 . . Self-Inflicted Damage 499 | . . . 37 32 . . 209 217 4 Shots 17 | . . . 1 1 . . 6 9 . Rammed 13 | . . . . 12 . . . . 1 Targets Rammed 17 | . . . . 16 . . . . 1 Kicked . | . . . . . . . . . . Crushed 4 | . . . . 4 . . . . . Highest Temperature 542 | . 15 9 216 308 . 108 223 437 542 Average Temperature 92 | . 7 5 50 83 . 44 39 98 170 Received Heat Transfer 2178 | . 93 27 270 138 . 18 459 1017 156 Effects 16 | . . . . 1 . . . 7 8 Shutdowns 4 | . . . . . . . . 1 3 Energy Bleed 2 | . . . . . . . . 1 1 Interference 3 | . . . . 1 . . . . 2 Matter Decay 1 | . . . . . . . . . 1 Short Circuit 1 | . . . . . . . . 1 . Damage (major) 5 | . . . . . . . . 4 1 Siege Activations . | . . . . . . . . . . Martial Activations . | . . . . . . . . . . Shielding Activations . | . . . . . . . . . . Robots Disrupted . | . . . . . . . . . . Combat Hostiles . | . . . . . . . . . . Robots Corrupted . | . . . . . . . . . . Combat Hostiles . | . . . . . . . . . . Parts Fried . | . . . . . . . . . . Impact Corruptions 1 | . . . . . . . 1 . . Robots Melted 1 | . . . . . . 1 . . . Combat Hostiles 1 | . . . . . . 1 . . . Parts Melted 5 | . . . 2 . . 2 . . 1 Heat Transferred 3627 | . . . 740 753 . 111 304 . 1719 Parts Sabotaged . | . . . . . . . . . . Parts Stolen . | . . . . . . . . . . Parts Stripped . | . . . . . . . . . . Power Chain Reactions 2 | . . . . 1 . . . 1 . Alert | -11 -10 -10 -9 -9 -9 -8 -8 -7 -6 ------- Run | Yrd Mat Min Mat Min Exi Min Mat Fac Fac Maximum Alert Level 3 | . . . . . . . 2 3 2 Low Security (%) 52 | 100 100 100 100 100 . 100 25 . . Level 1 13 | . . . . . . . 41 10 33 Level 2 31 | . . . . . . . 32 78 66 Level 3 2 | . . . . . . . . 11 . Level 4 . | . . . . . . . . . . Level 5 . | . . . . . . . . . . High Security . | . . . . . . . . . . Max Security . | . . . . . . . . . . Peak Influence 824 | . 123 167 190 70 . 60 652 824 608 Initial 387 | . . 43 57 61 . . 3 282 387 Average 249 | . 19 45 106 25 . 12 330 532 463 Influence Increases 4302 | . 152 377 394 336 . 70 1059 1169 745 Destroy 0b10 Robot/C 2060 | . 100 280 140 200 . 60 500 500 280 Destroy 0b10 Robot/NC 305 | . 25 5 60 15 . . 95 85 20 Destroy Leader 404 | . 24 50 48 30 . 10 96 94 52 Allied During Kill 40 | . . 27 4 9 . . . . . Disable Machine 465 | . . 15 45 30 . . 75 195 105 Anti-Garrison Action 150 | . . . . . . . 150 . . Destroy Structure 518 | . 3 . 97 22 . . 143 160 93 Partial Spotted 30 | . . . . . . . . . 30 Lose Combat Pursuer 330 | . . . . 30 . . . 135 165 Influence Decreases 3742 | . 39 342 383 455 40 60 446 1001 976 Entered New Map 1051 | . . 70 91 98 40 . 7 341 404 Time Decay 2033 | . 39 219 177 327 . 60 349 470 392 Lost Part 605 | . . 20 95 30 . . 90 190 180 Lost Ally 53 | . . 33 20 . . . . . . Squads Dispatched 14 | . . 1 . . . . 3 7 3 Investigation 3 | . . 1 . . . . . 2 . Extermination 3 | . . . . . . . . 1 2 Reinforcement 6 | . . . . . . . 1 4 1 Assault 2 | . . . . . . . 2 . . Garrison . | . . . . . . . . . . Intercept . | . . . . . . . . . . Searches Triggered . | . . . . . . . . . . Construction Impeded 2 | . . . . . . . . 2 . Haulers Reinforced 2 | . . . . . . . . 1 1 Active Scanning Responses . | . . . . . . . . . . Cargo Convoy Interrupts . | . . . . . . . . . . Stealth | -11 -10 -10 -9 -9 -9 -8 -8 -7 -6 --------- Run | Yrd Mat Min Mat Min Exi Min Mat Fac Fac Distress Signals 6 | . . . 2 . . . 1 1 2 Communications Jammed . | . . . . . . . . . . Distress Signals . | . . . . . . . . . . Times Spotted 162 | . 7 13 22 12 . 3 34 39 32 Peak Tracking Total 7 | . 4 4 6 2 . 3 7 6 7 Tactical Retreats 8 | . . . . 1 . . . 3 4 Traps | -11 -10 -10 -9 -9 -9 -8 -8 -7 -6 ------- Run | Yrd Mat Min Mat Min Exi Min Mat Fac Fac Traps Triggered 2 | . . . . . . . 1 1 . Indirectly . | . . . . . . . . . . Trap Hack Attempts . | . . . . . . . . . . Triggered . | . . . . . . . . . . Disarmed . | . . . . . . . . . . Reprogrammed . | . . . . . . . . . . Reused . | . . . . . . . . . . Traps Extracted . | . . . . . . . . . . Installed . | . . . . . . . . . . Triggered . | . . . . . . . . . . Machines | -11 -10 -10 -9 -9 -9 -8 -8 -7 -6 ---------- Run | Yrd Mat Min Mat Min Exi Min Mat Fac Fac Machines Disabled 32 | . . 1 3 2 . . 6 13 7 Max in Single Turn 5 | . . 1 1 1 . . 1 2 5 Garrison Access 2 | . . . . . . . 1 1 . Machines Repaired . | . . . . . . . . . . Machines Dismantled . | . . . . . . . . . . Machines Sabotaged . | . . . . . . . . . . Overloaded Fab Kills . | . . . . . . . . . . Hacking | -11 -10 -10 -9 -9 -9 -8 -8 -7 -6 --------- Run | Yrd Mat Min Mat Min Exi Min Mat Fac Fac Machines Accessed 8 | . . 1 1 . . . . 3 3 Terminals 3 | . . . 1 . . . . . 2 Fabricators 2 | . . . . . . . . 1 1 Repair Stations 1 | . . . . . . . . 1 . Recycling Units . | . . . . . . . . . . Scanalyzers . | . . . . . . . . . . Garrison Access 1 | . . . . . . . . 1 . Total Hacks 11 | . . 1 1 . . . . 5 4 Successful 4 | . . 1 . . . . . 2 1 Failed 7 | . . . 1 . . . . 3 3 Catastrophic 4 | . . . 1 . . . . 1 2 Database Lockouts . | . . . . . . . . . . Manual 4 | . . . 1 . . . . . 3 Terminals 4 | . . . 1 . . . . . 3 Fabricators 4 | . . . . . . . . 3 1 Repair Stations 1 | . . . . . . . . 1 . Recycling Units . | . . . . . . . . . . Scanalyzers . | . . . . . . . . . . Garrison Access 1 | . . . . . . . . 1 . Terminal Hacks 1 | . . 1 . . . . . . . Open Door 1 | . . 1 . . . . . . . Fabricator Hacks 2 | . . . . . . . . 1 1 Network Status 2 | . . . . . . . . 1 1 Repair Station Hacks . | . . . . . . . . . . Recycling Unit Hacks . | . . . . . . . . . . Scanalyzer . | . . . . . . . . . . Garrison Access Hacks 1 | . . . . . . . . 1 . Seal Access 1 | . . . . . . . . 1 . Unauthorized Hacks . | . . . . . . . . . . Terminals . | . . . . . . . . . . Fabricators . | . . . . . . . . . . Repair Stations . | . . . . . . . . . . Recycling Units . | . . . . . . . . . . Scanalyzers . | . . . . . . . . . . Garrison Access . | . . . . . . . . . . Data Cores Recovered . | . . . . . . . . . . Used . | . . . . . . . . . . Hacking Detections 5 | . . . 1 . . . . 2 2 Full Trace Events 1 | . . . . . . . . 1 . Feedback Events . | . . . . . . . . . . Feedback Blocked . | . . . . . . . . . . Robot Schematics Acquired . | . . . . . . . . . . Robots Built . | . . . . . . . . . . Authchips . | . . . . . . . . . . Time . | . . . . . . . . . . Total Robot Build Rating . | . . . . . . . . . . Part Schematics Acquired . | . . . . . . . . . . Parts Built . | . . . . . . . . . . Authchips . | . . . . . . . . . . Time . | . . . . . . . . . . Total Part Build Rating . | . . . . . . . . . . Parts Repaired . | . . . . . . . . . . Time . | . . . . . . . . . . Parts Recycled . | . . . . . . . . . . Recycled Matter . | . . . . . . . . . . Retrieved Matter . | . . . . . . . . . . Retrieved Components . | . . . . . . . . . . Parts Scanalyzed . | . . . . . . . . . . Part Schematics Acquired . | . . . . . . . . . . Parts Damaged . | . . . . . . . . . . Bothacking | -11 -10 -10 -9 -9 -9 -8 -8 -7 -6 ------------ Run | Yrd Mat Min Mat Min Exi Min Mat Fac Fac Used RIF Installer . | . . . . . . . . . . Robots Hacked . | . . . . . . . . . . Non-combat . | . . . . . . . . . . Combat . | . . . . . . . . . . Robot Hacks Applied . | . . . . . . . . . . Relay Couplers Released 1 | . . . . . . . 1 . . Machine Destruction 1 | . . . . . . . 1 . . Fabnet Peak Effective % . | . . . . . . . . . . Robots Rewired . | . . . . . . . . . . Allies Hacked . | . . . . . . . . . . Hacks Repelled . | . . . . . . . . . . Allies | -11 -10 -10 -9 -9 -9 -8 -8 -7 -6 -------- Run | Yrd Mat Min Mat Min Exi Min Mat Fac Fac Total Allies 5 | . . 3 . 2 . . . . . Largest Group 3 | . . 3 1 2 . . . . . Highest-Rated Group 42 | . . 40 16 42 . . . . . Highest-Rated Ally 31 | . . 16 16 31 . . . . . Total Orders . | . . . . . . . . . . Ally Attacks 35 | . . 17 3 15 . . . . . Total Damage 356 | . . 114 32 210 . . . . . Kills 4 | . . 3 . 1 . . . . . Allies Corrupted . | . . . . . . . . . . Allies Melted . | . . . . . . . . . . Intel | -11 -10 -10 -9 -9 -9 -8 -8 -7 -6 ------- Run | Yrd Mat Min Mat Min Exi Min Mat Fac Fac Active Infowar (turns) 743 | . . 144 399 53 . . . . 147 Sensors 147 | . . . . . . . . . 147 Terrain 596 | . . 144 399 53 . . . . . Robot Analysis Total . | . . . . . . . . . . Derelict Logs Recovered 4 | . . 2 . 2 . . . . . Drone Launches . | . . . . . . . . . . Drone Recoveries . | . . . . . . . . . . Exploration | -11 -10 -10 -9 -9 -9 -8 -8 -7 -6 ------------- Run | Yrd Mat Min Mat Min Exi Min Mat Fac Fac Turns Passed 6086 | 45 212 637 399 1219 290 345 811 1191 937 Spaces Moved 3606 | 32 89 347 238 670 180 202 323 537 988 Core 350 | 13 . 4 . . . . 17 112 204 Treads 1615 | 19 89 308 96 670 180 202 51 . . Legs 415 | . . . . . . . 217 198 . Wheels 178 | . . . . . . . . 151 27 Hover 757 | . . . . . . . . . 757 Flight 291 | . . 35 142 . . . 38 76 . Fastest Speed 27 | 50 160 117 27 160 160 160 50 35 40 Average Speed 133 | 115 160 157 101 160 160 160 174 172 67 Slowest Speed 500 | 160 160 280 160 160 160 160 275 500 250 Overloaded Moves . | . . . . . . . . . . Propulsion Burnouts . | . . . . . . . . . . Robots Hopped . | . . . . . . . . . . Potential Cave-ins . | . . . . . . . . . . Cave-ins Triggered . | . . . . . . . . . . Exploration Rate (%) 43 | 3 29 82 25 100 53 60 38 15 33 Regions Visited 9 Branch Regions 4 Pre-discovered Areas 2 | . . 1 . 1 . . . . . Known Exits Taken 1 | . . . . . . . 1 . . Unknown Exits Taken 8 | 1 1 1 1 1 1 1 . 1 . Scrap Searched 4 | . . 1 . 2 . 1 . . . Spaces Dug 27 | . . . . . . . . 17 10 Terrain Destroyed 565 | . . . 123 23 . . 162 169 88 Melee . | . . . . . . . . . . Projectile 93 | . . . . . . . 56 20 17 AOE 472 | . . . 123 23 . . 106 149 71 Terrain Rammed . | . . . . . . . . . . Walls Destroyed . | . . . . . . . . . . Machines Disabled . | . . . . . . . . . . Actions | -11 -10 -10 -9 -9 -9 -8 -8 -7 -6 --------- Run | Yrd Mat Min Mat Min Exi Min Mat Fac Fac Total 4336 | 40 113 394 315 764 183 210 439 700 1178 Wait 148 | . 1 7 . 27 . . 4 33 76 Move 3597 | 31 88 346 237 669 179 201 322 536 988 Hop . | . . . . . . . . . . Pick Up 63 | 5 1 8 12 3 2 . 11 5 16 Fast Attach 28 | . . 3 1 1 . . 4 12 7 Attach 59 | 4 . 1 13 3 . . 12 7 19 Detach 9 | . . . 1 1 . . 1 3 3 Swap 18 | . . 2 2 2 . 1 1 5 5 Drop 27 | . . 5 2 1 2 1 1 8 7 Fire 370 | . 23 22 47 41 . 7 83 91 56 Melee . | . . . . . . . . . . Ram 1 | . . . . . . . . . 1 Kick . | . . . . . . . . . . Crush 16 | . . . . 16 . . . . . Escape Stasis . | . . . . . . . . . . Rewire . | . . . . . . . . . . Trap . | . . . . . . . . . . Miscellaneous . | . . . . . . . . . . Route ------- -11/Scrapyard -10/Materials -10/Mines -9/Materials -9/Mines (discovered 3 exits: [*Mat x2] / [*Exi]) -9/Exiles -8/Mines -8/Materials -7/Factory -6/Factory History --------- Turn | Location | Event 3 | -11/Scrapyard | Discovered new exit (range 16) 46 | -11/Scrapyard | Entered Materials 244 | -10/Materials | Discovered new exit (range 8) 258 | -10/Materials | Entered Mines 264 | -10/Mines | Met a Derelict shopkeep closing up shop 311 | -10/Mines | Build established: Mutant 355 | -10/Mines | Found DCF Scrap (13 items) 453 | -10/Mines | Assisted by bots powering up and referring to "LRC-V3" 499 | -10/Mines | Received a Rocket Launcher from a helpful Derelict 522 | -10/Mines | Learned Materials emergency access door positions 696 | -10/Mines | Learned location of Zion (-6) 770 | -10/Mines | Core integrity fell below 50% 803 | -10/Mines | Discovered new exit (range 8) 895 | -10/Mines | Entered Materials 895 | -9/Materials | Accompanied by 1 ally 895 | -9/Materials | Evolved 2 slots: Propulsion x2 956 | -9/Materials | Lost 3 parts (2n1w) 1022 | -9/Materials | Lost 3 parts (2n1w) 1076 | -9/Materials | Discovered new exit (range 15) 1116 | -9/Materials | Lost 4 parts (2n2w) 1294 | -9/Materials | Entered Mines 1326 | -9/Mines | Deemed a non-threat by the Exiles lab entrance 1326 | -9/Mines | Discovered new exit (range 5) 1623 | -9/Mines | Discovered new exit (range 8) 1845 | -9/Mines | Discovered new exit (range 12) 1933 | -9/Mines | Core integrity fell below 50% 2005 | -9/Mines | Learned location of 1 exit from Proximity Caves 2058 | -9/Mines | Excavation squad dispatched 2058 | -9/Mines | A large section of the Mines collapsed 2513 | -9/Mines | Entered Exiles 2558 | -9/Exiles | Met 8R-AWN 2584 | -9/Exiles | Met EX-HEX 2645 | -9/Exiles | Met EX-DEC 2782 | -9/Exiles | Discovered new exit (range 15) 2803 | -9/Exiles | Entered Mines 3135 | -8/Mines | Discovered new exit (range 6) 3148 | -8/Mines | Entered Materials 3148 | -8/Materials | Evolved 2 slots: Utility x2 3356 | -8/Materials | Core integrity fell below 50% 3370 | -8/Materials | Lost 8 parts (1p1n3u3w) 3408 | -8/Materials | Destroyed 8 combat bots 3918 | -8/Materials | Discovered new exit (range 16) 3958 | -8/Materials | Identified exit to Factory 3959 | -8/Materials | Entered Factory 3959 | -7/Factory | Evolved 2 slots: Utility x2 5108 | -7/Factory | Lost 6 parts (2n2u2w) 5137 | -7/Factory | Discovered new exit (range 11) 5145 | -7/Factory | Lost 3 parts (1n1u1w) 5146 | -7/Factory | Core integrity fell below 50% 5150 | -7/Factory | Entered another Factory area 5150 | -6/Factory | Evolved 2 slots: Utility x2 5942 | -6/Factory | Core integrity fell below 50% 5984 | -6/Factory | Lost 12 parts (1p3n6u2w) 6072 | -6/Factory | Core integrity fell below 20% 6087 | -6/Factory | Destroyed by S-27 Virus with Autogun Last Messages --------------- K-01 Serf collects debris. U-05 Engineer lays Concrete. K-01 Serf collects debris. U-05 Engineer lays Concrete. K-01 Serf collects debris. K-01 Serf cleans the Fabricator. G-50 Soldier destroyed. K-01 Serf collects debris. U-05 Engineer lays Concrete. Missile Launcher destroyed. The unstable cave ceiling collapses. U-05 Engineer lays Concrete. K-01 Serf collects debris. U-05 Engineer lays Concrete. K-01 Serf collects debris. U-05 Engineer lays Concrete. K-01 Serf collects debris. U-05 Engineer lays Concrete. Acquired Adv. Heat Sink. U-05 Engineer lays Concrete. Map ----- +----------------------------------------------------+ | ????? ##??????????????????????? | | ???? %! #??????????????????????? | | ???? [ ##??????????????????????? | | ?? #??????????????????????? | | ?? ##??????????????????????? | | ??# #???????????????????????? | | ??# ##???????????????????????? | | ### #???????????????????????? | | # "" #???????????????????????? | | ?""" #???????????????????????? | | ?"F "########????????????????? | | #""" #????????????????? | | #""" #????????????????? | | #""" u *#????????????????? | | ??# #????????????????? | | ??# #????????????????? | | ??# #????????????????? | | #?# #????????????????? | | # # #????????????????? | | ""?# "" #????????????????? | | Y?# """ """ ###########??????????????? | | """# "F " #????????????? | | # """ """" """???????????????? | | / "" s """" """???????????????? | | # #s """" """"??????????????? | | # #s@"""" """"??????????????? | | ?# ####"" "" ###s """" """" #????????????? | | ?# #??#""R""####?# """" """" #????????????? | | ??# #??# """"#????# #????????????? | | #??#######????# #????????????? | | ### T?????????????# #????????????? | | ??# #????????????# #????????????? | | ??# % ##????????????# #????????????? | | ??# * #?????????????##############????????????? | | ??# ???????????????????????????????????????? | | ??# ??????????????????????????????????????? | | ??## ??????????????????????????????????????? | | ???# ?????????????????????????????????????? | | ???# # ?????????????????????????????????????? | | ???# # ?????????????????????????????????????? | | ???# # ?????????????????????????????????????? | | ???# ?? ?????????????????????????????????????? | | ????? ????????????????????????????????????????? | | ?????????????????????????????????????????????????? | | ?????????????????????????????????????????????????? | | ?????????????????????????????????????????????????? | | ?????????????????????????????????????????????????? | | ?????????????????????????????????????????????????? | | ?????????????????????????????????????????????????? | | ?????????????????????????????????????????????????? | +----------------------------------------------------+ Best States ------------- Heat Dissipation 65 Energy Generation 18 Energy Capacity 480 Matter Stores 665 Matter Capacity 700 Sight Range 16 Robot Scan Range 15 Terrain Scan Range 14 Terrain Scan Density 10 Armor Coverage 225 Resistance: TH 20 Weapon Shielding 90 Weapon Cycling 30 Evasion (%) 64 Recoil Reduction 3 Particle Charging 15 Kinecelleration 30 Offensive Hacking 10 Item Schematics ----------------- None Robot Schematics ------------------ None Fabricated ------------ Nothing Repaired ---------- Nothing Alien Tech Used ----------------- None Achievements -------------- None Challenges ------------ None Game ------ Seed SapperElectronProcessor Manual? 0 Play Time 00:45:29 Cumulative 134.2 hours Start 2025.09.12 @ 12:15:47 End 2025.09.12 @ 15:41:37 Sessions 1 Manual Loads 0 Difficulty Rogue Special Mode None Game No. 460 Rogue 460 Adventurer 0 Explorer 0 Win Type - Total 0 Types 0/0/0/0/0/0/0/0/0/0 Lore% 51 Gallery% 48 Achievement% 35 Wizard Run 0 Options --------- Layout 2 ASCII 0 Keyboard 0 Movement Mouse Keybinds 0 Fullscreen 1 Font 24/Smallcaps Map View 50x44 Zoom Use 1% Tactical HUD 0 Map Filters NONE Filters NONE Steam 1 RUN: c53b2dad-d98e-4b55-95de-4ac8a0517410